bitfinex-derivatives/quotes_SOLF0:USTF0_20250923
["timestamp","ask_amount","ask_price","bid_price","bid_amount"]
[1758613356289,3.23000866,218.96,218.88,7.72]
[1758613356491,4.1073,218.97,218.88,7.72]
[1758613356698,3.23045578,218.96,218.88,7.72]
[1758613356998,4.1073,218.97,218.89,7.37]
[1758613357296,3.23057652,218.96,218.89,7.37]
[1758613357492,4.1073,218.97,218.89,7.37]
[1758613357694,3.23046141,218.96,218.89,7.37]
[1758613357894,4.9668,219.0,218.91,7.37]
[1758613358201,3.22980958,218.99,218.91,7.37]
[1758613358497,3.22980958,218.98,218.91,7.37]
[1758613358698,3.22980958,218.97,218.91,7.37]
[1758613358898,4.107,218.99,218.91,7.37]
[1758613359101,3.22978929,218.98,218.91,7.37]
[1758613359299,3.22978929,218.97,218.91,7.37]
[1758613359498,3.22978929,218.96,218.9,4.1085]
[1758613359699,4.107,218.99,218.91,7.37]
[1758613359901,3.22971472,218.98,218.91,7.37]
[1758613360099,3.22971472,218.97,218.91,7.37]
[1758613360294,3.22971472,218.96,218.91,7.37]
[1758613360495,4.107,218.99,218.91,7.37]
[1758613360701,0.89,218.97,218.91,7.37]
[1758613360900,3.22956299,218.96,218.9,7.37]
[1758613361201,0.89,218.97,218.9,7.37]
[1758613361403,3.229189,218.96,218.9,7.37]
[1758613361595,63.8773,219.02,218.92,1.90891374]
[1758613361596,0.89,219.01,218.92,1.90891374]
[1758613361800,3.22927293,219.0,218.93,7.37]
[1758613362097,3.22927293,218.99,218.93,7.37]
[1758613362296,3.22927293,218.98,218.92,1.90891374]
[1758613362496,3.22927293,218.97,218.93,7.37]
[1758613362703,0.89,219.01,218.93,7.37]
[1758613362899,7.33609489,219.0,218.93,11.4779]
[1758613363095,3.22929489,218.99,218.93,11.4779]
[1758613363398,3.22929489,218.98,218.92,1.90891374]
[1758613363701,4.1068,219.0,218.93,7.37]
[1758613363901,3.22874611,218.99,218.93,7.37]
[1758613364103,3.22874611,218.98,218.92,1.90891374]
[1758613364297,4.1068,219.0,218.92,1.90891374]
[1758613364499,3.22895843,218.99,218.93,7.37]
[1758613364699,3.22895843,218.98,218.93,7.37]
[1758613365002,4.1068,219.0,218.93,7.37]
[1758613365201,3.22933145,218.99,218.93,7.37]
[1758613365396,3.22933145,218.98,218.93,7.37]
[1758613365596,4.1068,219.0,218.93,7.37]
[1758613365802,4.1071,218.98,218.92,1.90891374]
[1758613366002,4.1071,218.98,218.92,7.37]
[1758613368312,3.23041902,218.97,218.88,7.37]
[1758613368497,1.90891374,218.95,218.88,7.37]
[1758613368701,3.23041902,218.94,218.88,7.37]
[1758613370411,6.01661374,218.95,218.88,7.37]
[1758613370606,3.2295377,218.94,218.88,7.37]
[1758613370806,6.01661374,218.95,218.88,7.37]
[1758613371007,3.2295349,218.94,218.88,7.37]
[1758613371311,6.01661374,218.95,218.88,7.37]
[1758613371521,3.22917859,218.94,218.88,7.37]
[1758613371807,1.90891374,218.95,218.88,7.37]
[1758613372019,7.69844902,218.94,218.84,7.37]
[1758613372316,3.2291802,218.93,218.84,7.37]
[1758613372609,4.1085,218.9,218.84,7.37]
[1758613374414,4.1081,218.93,218.84,7.37]
[1758613374712,0.89,218.94,218.84,7.37]
[1758613374713,3.22617582,218.92,218.84,7.37]
[1758613374903,0.89,218.94,218.84,7.37]
[1758613374904,3.22617582,218.91,218.84,7.37]
[1758613375109,0.89,218.94,218.84,7.37]
[1758613375301,3.22544088,218.93,218.84,7.37]
[1758613375507,3.22544088,218.92,218.84,7.37]
[1758613375706,0.89,218.94,218.84,7.37]
[1758613375906,4.1084,218.91,218.84,7.37]
[1758613378207,4.1087,218.9,218.84,7.37]
[1758613378812,0.89,218.88,218.84,7.37]
[1758613379617,0.89,218.88,218.79,6.01931374]
[1758613379816,0.89,218.88,218.8,7.37]
[1758613380919,0.89,218.88,218.81,7.01]
[1758613382617,4.1087,218.9,218.81,4.1101]
[1758613382820,3.22535282,218.89,218.82,7.01]
[1758613383021,4.1087,218.9,218.82,7.01]
[1758613383216,3.22602264,218.89,218.82,7.01]
[1758613383522,4.1087,218.9,218.82,11.1199]
[1758613383718,0.88,218.91,218.83,7.01]
[1758613384619,4.9876,218.95,218.86,7.01]
[1758613384914,3.22698662,218.94,218.86,7.01]
[1758613385116,3.22698662,218.93,218.87,7.01]
[1758613385324,3.22698662,218.92,218.87,7.01]
[1758613385620,4.1076,218.95,218.87,7.01]
[1758613385815,3.22793643,218.94,218.88,4.1089]
[1758613386015,0.88,219.01,218.93,7.01]
[1758613386222,3.22920806,219.0,218.93,7.01]
[1758613386520,3.22920806,218.99,218.93,7.01]
[1758613386722,3.22920806,218.98,218.91,1.90891374]
[1758613386921,0.88,219.0,218.92,7.01]
[1758613387122,3.22869141,218.99,218.92,7.01]
[1758613387325,0.88,219.0,218.92,7.01]
[1758613387523,3.22886337,218.99,218.92,7.01]
[1758613387723,0.88,219.0,218.94,1.90891374]
[1758613387924,3.2288604,218.99,218.94,1.90891374]
[1758613388123,0.88,219.0,218.94,8.91891374]
[1758613389316,0.88,218.98,218.94,8.91891374]
[1758613390521,4.1067,219.0,218.94,8.91891374]
[1758613390823,0.88,218.95,218.86,7.01]
[1758613391024,0.88,218.93,218.86,7.01]
[1758613391218,3.23327223,218.92,218.86,7.01]
[1758613391417,4.1082,218.92,218.86,7.01]
[1758613392624,3.23062937,218.91,218.86,7.01]
[1758613392825,4.1082,218.92,218.86,7.01]
[1758613393027,3.23050341,218.91,218.86,7.01]
[1758613393226,4.1082,218.92,218.86,7.01]
[1758613393421,3.23041338,218.91,218.86,7.01]
[1758613393622,4.1082,218.92,218.86,7.01]
[1758613393822,4.1082,218.92,218.84,1.90891374]
[1758613393823,0.88,218.9,218.84,1.90891374]
[1758613394023,2.78891374,218.93,218.85,7.01]
[1758613394227,7.04262927,218.92,218.85,7.01]
[1758613394430,2.78891374,218.93,218.85,7.01]
[1758613394617,7.04385999,218.92,218.85,7.01]
[1758613394818,2.78891374,218.93,218.85,7.01]
[1758613395019,7.0440093,218.92,218.85,7.01]
[1758613395228,2.78891374,218.93,218.85,7.01]
[1758613395825,4.1077,218.95,218.85,7.01]
[1758613396033,1.90891374,218.93,218.85,7.01]
[1758613396330,7.04496612,218.92,218.85,7.01]
[1758613396529,6.01691374,218.93,218.85,7.01]
[1758613396721,7.04430641,218.92,218.85,7.01]
[1758613396925,6.01691374,218.93,218.85,7.01]
[1758613397121,7.04438087,218.92,218.85,7.01]
[1758613397326,6.01691374,218.93,218.85,7.01]
[1758613397521,7.0443611,218.92,218.85,7.01]
[1758613397828,6.01691374,218.93,218.85,7.01]
[1758613398020,7.0443611,218.92,218.85,7.01]
[1758613398223,6.01691374,218.93,218.85,7.01]
[1758613398422,7.04432296,218.92,218.85,8.91891374]
[1758613398625,0.88,218.94,218.86,7.31]
[1758613398825,7.04436646,218.93,218.86,7.31]
[1758613399130,7.04436646,218.92,218.86,7.31]
[1758613399431,0.88,218.94,218.86,7.31]
[1758613399632,7.0452561,218.93,218.86,7.31]
[1758613399831,7.0452561,218.92,218.87,7.31]
[1758613400027,6.01631374,218.96,218.87,7.31]
[1758613400229,11.00757044,218.95,218.87,7.31]
[1758613400529,7.04745204,218.94,218.87,7.31]
[1758613400733,7.04745204,218.93,218.87,7.31]
[1758613400930,6.01631374,218.96,218.87,7.31]
[1758613401131,11.00917945,218.95,218.87,7.31]
[1758613401331,7.04845032,218.94,218.87,7.31]
[1758613401526,7.04845032,218.94,218.86,4.1091]
[1758613401527,7.04845032,218.93,218.88,6.01781374]
[1758613401733,4.107,218.99,218.89,7.31]
[1758613401934,11.88031201,218.98,218.89,7.31]
[1758613402134,7.04904157,218.97,218.89,7.31]
[1758613402432,7.04904157,218.96,218.91,1.90891374]
[1758613402634,4.107,218.99,218.92,7.31]
[1758613402933,11.01085119,218.98,218.92,7.31]
[1758613403127,7.0493384,218.97,218.91,1.90891374]
[1758613403331,0.87,219.01,218.93,7.31]
[1758613403628,11.01093151,219.0,218.93,7.31]
[1758613403823,11.01093151,218.99,218.93,7.31]
[1758613404025,11.01093151,218.99,218.92,4.1081]
[1758613404026,7.04937859,218.98,218.92,4.1081]
[1758613404233,0.87,219.01,218.93,7.31]
[1758613404432,11.01084502,219.0,218.93,7.31]
[1758613404630,11.01084502,218.99,218.93,7.31]
[1758613404828,7.04932197,218.98,218.92,4.1081]
[1758613405033,4.1067,219.0,218.93,7.31]
[1758613405235,7.04915031,218.99,218.93,7.31]
[1758613405426,7.04915031,218.98,218.93,7.31]
[1758613405629,4.1067,219.0,218.93,7.31]
[1758613405833,7.04871512,218.99,218.93,7.31]
[1758613406037,1.90891374,219.02,218.93,7.31]
[1758613406234,7.04876425,219.01,218.93,7.31]
[1758613406436,7.04876425,219.0,218.93,7.31]
[1758613406635,1.90891374,219.02,218.93,7.31]
[1758613406835,7.05020739,219.01,218.93,7.31]
[1758613407040,7.05020739,219.0,218.93,7.31]
[1758613407338,1.90891374,219.02,218.93,7.31]
[1758613407541,7.04956402,219.01,218.93,7.31]
[1758613407734,1.90891374,219.02,218.93,7.31]
[1758613407934,7.0495742,219.01,218.93,7.31]
[1758613408135,1.90891374,219.02,218.93,7.31]
[1758613408336,7.04887362,219.01,218.93,7.31]
[1758613408536,4.1061,219.03,218.95,7.31]
[1758613408742,11.01031701,219.02,218.95,7.31]
[1758613408940,7.04887018,219.01,218.95,7.31]
[1758613409136,4.1061,219.03,218.95,7.31]
[1758613409341,7.04876669,219.02,218.95,7.31]
[1758613409540,4.1061,219.03,218.95,7.31]
[1758613409741,7.04997537,219.02,218.95,7.31]
[1758613409942,4.1061,219.03,218.95,7.31]
[1758613410148,7.04997376,219.02,218.95,7.31]
[1758613410448,4.1061,219.03,218.95,7.31]
[1758613410650,7.04901152,219.02,218.95,7.31]
[1758613410850,4.1061,219.03,218.95,7.31]
[1758613411049,7.04848094,219.02,218.95,7.31]
[1758613411250,4.1061,219.03,218.95,7.31]
[1758613411446,7.04755516,219.02,218.95,7.31]
[1758613411651,4.1061,219.03,218.95,7.31]
[1758613411951,7.04755262,219.02,218.95,7.31]
[1758613412151,2.77891374,219.05,218.95,7.31]
[1758613412340,11.0291932,219.04,218.95,7.31]
[1758613412541,11.0291932,219.03,218.95,7.31]
[1758613412742,7.04665618,219.02,218.95,7.31]
[1758613412946,4.1059,219.04,218.95,7.31]
[1758613413148,11.02918912,219.03,218.95,7.31]
[1758613413351,7.04665364,219.02,218.95,7.31]
[1758613413550,7.04578199,219.01,218.95,7.31]
[1758613413746,4.9763,219.02,218.95,7.31]
[1758613413950,7.04577733,219.01,218.95,7.31]
[1758613414158,6.01481374,219.05,218.95,7.31]
[1758613414445,11.02645158,219.04,218.95,7.31]
[1758613414649,7.04491424,219.03,218.95,7.31]
[1758613414851,6.01481374,219.05,218.95,7.31]
[1758613415057,11.02647063,219.04,218.95,7.31]
[1758613415258,7.04491439,219.03,218.95,7.31]
[1758613415461,0.87,219.06,218.98,7.26]
[1758613415660,11.02562222,219.05,218.98,7.26]
[1758613415859,7.04429636,219.04,218.98,7.26]
[1758613416059,0.87,219.06,218.98,7.26]
[1758613416260,11.02530311,219.05,218.98,7.26]
[1758613416463,7.04387253,219.04,218.98,7.26]
[1758613416663,4.1057,219.05,218.98,7.26]
[1758613416856,7.04301278,219.04,218.98,7.26]
[1758613417160,4.1057,219.05,218.98,7.26]
[1758613417363,7.04401584,219.04,218.98,7.26]
[1758613417554,4.1057,219.05,218.98,7.26]
[1758613417754,7.04430369,219.04,218.98,7.26]
[1758613417956,4.1057,219.05,218.98,7.26]
[1758613418157,7.06030631,219.04,218.98,7.26]
[1758613418458,4.1057,219.05,218.98,7.26]
[1758613418664,0.87,219.01,218.93,1.90891374]
[1758613419057,0.87,219.01,218.94,7.26]
[1758613419257,4.1067,219.0,218.94,7.26]
[1758613422667,0.87,218.94,218.85,7.26]
[1758613422861,0.87,218.95,218.85,7.26]
[1758613423056,4.1082,218.92,218.85,7.26]
[1758613423257,0.87,218.98,218.85,7.26]
[1758613423458,11.03942102,218.97,218.85,7.26]
[1758613423761,11.03935814,218.96,218.85,7.26]
[1758613423960,7.05993122,218.95,218.85,7.26]
[1758613424163,7.05993122,218.94,218.85,7.26]
[1758613424359,0.87,218.98,218.85,7.26]
[1758613424360,4.9777,218.95,218.85,7.26]
[1758613424664,7.10266791,218.94,218.85,7.26]
[1758613424866,4.9777,218.95,218.85,7.26]
[1758613425265,3.85376629,218.94,218.85,7.26]
[1758613425464,4.1071,218.98,218.85,7.26]
[1758613426169,7.10458588,218.97,218.85,7.26]
[1758613426366,4.1071,218.98,218.85,7.26]
[1758613426562,7.10484801,218.97,218.9,7.26]
[1758613426760,0.87,218.99,218.9,7.26]
[1758613427064,7.10506139,218.98,218.9,7.26]
[1758613427264,0.87,218.99,218.9,7.26]
[1758613427467,7.10682934,218.98,218.9,7.26]
[1758613427655,3.8562144,218.97,218.9,7.26]
[1758613427857,0.87,218.99,218.9,7.26]
[1758613428058,7.10741807,218.98,218.9,7.26]
[1758613428258,7.1083596,218.97,218.9,7.26]
[1758613428465,0.87,218.99,218.9,7.26]
[1758613428768,7.10835783,218.98,218.9,7.26]
[1758613429067,7.10835783,218.97,218.9,7.26]
[1758613429265,0.87,218.99,218.9,7.26]
[1758613429564,7.10838275,218.98,218.9,7.26]
[1758613429865,7.10838275,218.97,218.9,7.26]
[1758613430066,0.87,218.99,218.9,7.26]
[1758613430263,7.10877262,218.98,218.9,7.26]
[1758613430458,0.87,218.99,218.9,7.26]
[1758613430665,7.10924198,218.98,218.9,7.26]
[1758613430864,3.85749931,218.97,218.9,7.26]
[1758613431163,4.9769,218.99,218.9,7.26]
[1758613431362,11.09334817,218.98,218.9,7.26]
[1758613431666,4.9769,218.99,218.9,7.26]
[1758613431667,7.10946183,218.97,218.9,7.26]
[1758613431869,4.9769,218.99,218.9,7.26]
[1758613432067,7.10869769,218.98,218.9,7.26]
[1758613432368,3.85718756,218.97,218.9,7.26]
[1758613432563,0.87,218.99,218.9,7.26]
[1758613432769,7.10878726,218.98,218.9,7.26]
[1758613433069,3.85724928,218.97,218.9,7.26]
[1758613433366,0.87,218.99,218.9,11.3685]
[1758613433573,7.10912143,218.98,218.91,7.26]
[1758613433764,0.87,218.99,218.91,7.26]
[1758613433962,3.85743576,218.98,218.91,7.26]
[1758613434165,0.87,218.99,218.91,7.26]
[1758613434468,7.10930971,218.98,218.91,7.26]
[1758613434669,0.87,218.99,218.91,7.26]
[1758613434871,7.10930886,218.98,218.91,7.26]
[1758613435169,0.87,218.99,218.91,7.26]
[1758613435370,7.1095125,218.98,218.91,7.26]
[1758613435566,0.87,218.99,218.91,7.26]
[1758613435872,7.10951073,218.98,218.91,7.26]
[1758613436064,7.10942744,218.97,218.91,7.26]
[1758613436263,3.85779289,218.96,218.9,11.3685]
[1758613436460,4.9769,218.99,218.9,7.26]
[1758613436667,11.09414108,218.98,218.9,7.26]
[1758613436868,7.11007052,218.97,218.9,7.26]
[1758613437070,7.11007052,218.96,218.9,7.26]
[1758613437364,4.9769,218.99,218.9,7.26]
[1758613437564,11.0956215,218.98,218.9,7.26]
[1758613437769,7.11101014,218.97,218.9,7.26]
[1758613438069,7.11101014,218.96,218.9,7.26]
[1758613438270,4.1073,218.97,218.9,7.26]
[1758613438473,7.98218424,218.96,218.9,7.26]
[1758613438668,0.87,218.94,218.9,7.26]
[1758613439277,0.87,218.93,218.87,7.26]
[1758613441265,4.1075,218.96,218.87,7.26]
[1758613441470,7.11412805,218.95,218.87,7.26]
[1758613441665,7.11412805,218.94,218.87,7.26]
[1758613441861,3.8601432,218.93,218.87,7.26]
[1758613442067,4.1075,218.96,218.87,7.26]
[1758613442267,11.95236395,218.95,218.87,7.26]
[1758613442473,7.11695211,218.94,218.87,7.26]
[1758613442674,7.11792743,218.93,218.87,7.26]
[1758613442873,0.85,218.95,218.87,7.26]
[1758613443068,7.11822543,218.94,218.87,7.26]
[1758613443379,0.85,218.92,218.83,7.22]
[1758613443568,7.11822543,218.91,218.83,7.22]
[1758613443769,7.11822543,218.9,218.83,7.22]
[1758613444069,0.85,218.92,218.83,7.22]
[1758613444268,7.11827219,218.91,218.83,7.22]
[1758613444471,7.11827219,218.9,218.83,7.22]
[1758613447371,11.1014752,218.91,218.83,7.22]
[1758613447581,7.11600575,218.9,218.83,7.22]
[1758613447772,0.85,218.92,218.83,7.22]
[1758613448076,7.114327,218.91,218.83,7.22]
[1758613448278,7.114327,218.9,218.83,7.22]
[1758613448477,0.85,218.92,218.83,7.22]
[1758613448679,7.11198883,218.91,218.83,7.22]
[1758613448976,7.11198883,218.9,218.83,7.22]
[1758613449180,4.1084,218.91,218.83,7.22]
[1758613449373,7.1106774,218.9,218.83,7.22]
[1758613449573,4.1084,218.91,218.83,7.22]
[1758613449773,7.11066937,218.9,218.83,7.22]
[1758613449975,3.85856948,218.89,218.83,7.22]
[1758613450179,4.1084,218.91,218.83,7.22]
[1758613450479,0.85,218.89,218.83,7.22]
[1758613451473,0.85,218.94,218.83,7.22]
[1758613451675,0.85,218.98,218.86,7.22]
[1758613451878,11.0903519,218.97,218.86,7.22]
[1758613452076,7.1083696,218.96,218.86,7.22]
[1758613452273,7.1083696,218.95,218.86,7.22]
[1758613452475,7.1083696,218.94,218.86,7.22]
[1758613452678,0.85,218.98,218.86,7.22]
[1758613452881,7.10892806,218.97,218.89,7.22]
[1758613453082,7.10892806,218.96,218.89,7.22]
[1758613453283,0.85,218.98,218.89,7.22]
[1758613453483,7.1095266,218.97,218.89,7.22]
[1758613453684,7.1095266,218.96,218.89,7.22]
[1758613453878,0.85,218.98,218.89,7.22]
[1758613454082,7.08917526,218.97,218.89,7.22]
[1758613454282,7.08917526,218.96,218.89,7.22]
[1758613454482,0.85,218.98,218.89,7.22]
[1758613454680,7.08961021,218.97,218.9,4.1084]
[1758613454984,2.98156078,219.01,218.85,66.90586078]
[1758613454985,4.9564,219.02,218.91,7.22]
[1758613455186,10.85606537,219.01,218.91,7.22]
[1758613455488,7.08993761,219.0,218.91,7.22]
[1758613455787,7.08993761,218.99,218.92,4.1081]
[1758613455981,7.08993761,218.98,218.92,4.1081]
[1758613456287,4.9564,219.02,218.93,7.22]
[1758613456491,10.8586417,219.01,218.93,7.22]
[1758613456788,7.09157504,219.0,218.93,7.22]
[1758613456988,7.09157504,218.99,218.93,7.22]
[1758613457188,7.09157504,218.98,218.92,4.1081]
[1758613457389,4.9564,219.02,218.93,7.1]
[1758613457589,10.85967117,219.01,218.93,7.1]
[1758613457786,7.0922462,219.0,218.93,7.1]
[1758613457981,4.9564,219.02,218.93,7.1]
[1758613457982,7.0922462,218.99,218.93,7.1]
[1758613458185,7.0922462,218.98,218.93,7.1]
[1758613458389,3.25393682,218.97,218.92,4.1081]
[1758613458686,4.9564,219.02,218.93,7.1]
[1758613458886,10.86114935,219.01,218.93,7.1]
[1758613459081,7.09321044,219.0,218.93,7.1]
[1758613459281,7.09321044,218.99,218.93,7.1]
[1758613459476,7.09321044,218.98,218.93,7.1]
[1758613459677,7.09321044,218.97,218.92,4.1081]
[1758613459881,4.9564,219.02,218.93,7.1]
[1758613460078,0.87,219.0,218.86,7.1]
[1758613460288,0.87,218.98,218.86,7.1]
[1758613460590,7.09387811,218.97,218.86,7.1]
[1758613460788,7.09387811,218.96,218.86,7.1]
[1758613460983,3.2549661,218.95,218.86,7.1]
[1758613461291,4.9771,218.98,218.87,7.1]
[1758613461483,7.09600146,218.97,218.87,7.1]
[1758613461683,7.09600146,218.96,218.87,7.1]
[1758613461880,7.09600146,218.95,218.87,7.1]
[1758613462088,4.9771,218.98,218.87,7.1]
[1758613462288,7.09720205,218.97,218.87,7.1]
[1758613462489,7.09720205,218.96,218.87,7.1]
[1758613462792,7.09720205,218.95,218.88,4.1089]
[1758613462993,4.9771,218.98,218.89,7.1]
[1758613463182,7.09821654,218.97,218.89,7.1]
[1758613463387,7.09821654,218.96,218.89,7.1]
[1758613463583,7.09821654,218.95,218.89,7.1]
[1758613463788,4.9771,218.98,218.89,7.1]
[1758613463988,11.20674118,218.97,218.89,7.1]
[1758613464187,7.09934118,218.96,218.89,7.1]
[1758613464388,7.09934118,218.95,218.89,7.1]
[1758613464589,7.96934118,218.94,218.88,4.1089]
[1758613464790,4.12719807,218.93,218.89,7.1]
[1758613464994,0.87,218.93,218.89,7.1]
[1758613466193,0.87,218.93,218.87,7.1]
[1758613466896,4.1072,218.97,218.87,4.1089]
[1758613467098,7.97202516,218.96,218.88,7.1]
[1758613467300,7.10202516,218.95,218.88,7.1]
[1758613467495,7.10202516,218.94,218.88,7.1]
[1758613467695,7.10202516,218.93,218.88,7.1]
[1758613468003,0.87,218.96,218.88,7.1]
[1758613468197,7.10304567,218.95,218.88,7.1]
[1758613468493,7.10304567,218.94,218.89,4.1086]
[1758613468695,7.1032265,218.93,218.9,7.1]
[1758613468999,0.87,218.94,218.9,7.1]
[1758613469200,0.87,218.94,218.89,4.1086]
[1758613469399,7.10339371,218.93,218.9,7.1]
[1758613469598,0.87,218.94,218.9,7.1]
[1758613469900,7.10339211,218.93,218.9,7.1]
[1758613470101,7.10308369,218.92,218.9,7.1]
[1758613470401,0.87,218.94,218.9,7.1]
[1758613470607,0.87,218.94,218.87,4.1091]
[1758613470608,7.10320691,218.93,218.88,7.56]
[1758613470800,0.87,218.94,218.88,7.56]
[1758613470999,7.10320985,218.93,218.88,7.56]
[1758613471197,0.87,218.94,218.89,4.1087]
[1758613471393,7.10305323,218.93,218.89,4.1087]
[1758613471598,0.87,218.94,218.9,7.56]
[1758613471799,0.86,219.0,218.92,7.56]
[1758613472002,10.86495167,218.99,218.92,7.56]
[1758613472199,7.10366122,218.98,218.92,11.668]
[1758613472396,7.96366122,218.97,218.93,7.56]
[1758613472600,7.10366122,218.96,218.93,7.56]
[1758613472806,7.10366122,218.95,218.93,7.56]
[1758613473011,0.86,218.97,218.93,7.56]
[1758613473197,7.10393742,218.96,218.93,7.56]
[1758613473400,7.10393742,218.95,218.93,7.56]
[1758613473609,0.86,218.97,218.93,7.56]
[1758613473813,7.10419571,218.96,218.93,7.56]
[1758613474012,0.86,218.97,218.93,7.56]
[1758613474013,7.10519141,218.95,218.93,7.56]
[1758613474202,0.86,218.97,218.93,7.56]
[1758613474401,7.10678567,218.96,218.93,7.56]
[1758613474702,7.10678567,218.95,218.93,7.56]
[1758613474906,0.86,218.97,218.93,7.56]
[1758613475103,5.8943637,219.03,218.89,2.98156078]
[1758613475104,7.10687164,218.96,218.89,2.98156078]
[1758613475307,0.86,219.01,218.91,7.56]
[1758613475498,10.87030033,219.0,218.91,7.56]
[1758613475702,7.10715855,218.99,218.95,7.56]
[1758613475904,7.10715855,218.98,218.95,7.56]
[1758613476111,7.10715855,218.97,218.95,7.56]
[1758613476304,7.10715855,218.96,218.95,7.56]
[1758613479210,3.26074393,218.96,218.95,7.56]
[1758613479408,0.86,218.99,218.95,7.56]
[1758613479604,7.10581716,218.98,218.94,4.1077]
[1758613479805,0.86,218.99,218.95,7.56]
[1758613480010,7.10582433,218.98,218.95,7.56]
[1758613480206,7.10579959,218.97,218.95,7.56]
[1758613480410,0.86,218.98,218.95,7.56]
[1758613480818,0.86,219.01,218.9,7.56]
[1758613481010,7.1052963,219.0,218.9,7.56]
[1758613481207,0.86,219.01,218.9,7.56]
[1758613481208,7.1052963,218.99,218.9,7.56]
[1758613481410,7.1052963,218.98,218.94,7.56]
[1758613481610,0.86,219.01,218.94,7.56]
[1758613481806,7.10457263,219.0,218.95,7.56]
[1758613482114,7.10457263,218.99,218.91,7.56]
[1758613482315,0.86,219.02,218.91,7.56]
[1758613482506,7.10452562,219.01,218.93,1.90815884]
[1758613482710,7.10452562,219.0,218.93,9.46815884]
[1758613482910,7.96452562,218.99,218.93,1.90815884]
[1758613483116,3.25906957,218.98,218.94,7.56]
[1758613483315,0.86,218.99,218.93,1.90815884]
[1758613483510,7.13619989,218.98,218.94,7.56]
[1758613483715,0.86,218.99,218.93,1.90815884]
[1758613483912,7.1363417,218.98,218.94,7.56]
[1758613484215,0.86,218.99,218.93,1.90815884]
[1758613484416,3.8767096,218.98,218.94,7.56]
[1758613484716,0.86,218.99,218.92,11.668]
[1758613484905,7.13548852,218.98,218.92,11.668]
[1758613485106,0.86,218.99,218.92,11.668]
[1758613485310,7.13549161,218.98,218.92,11.668]
[1758613485510,0.86,218.99,218.92,11.668]
[1758613485712,7.13511756,218.98,218.92,4.108]
[1758613485910,0.86,218.99,218.93,7.56]
[1758613486216,7.13526796,218.98,218.92,4.108]
[1758613486406,0.86,218.99,218.93,7.56]
[1758613486612,7.13444595,218.98,218.92,4.108]
[1758613486813,0.86,218.99,218.93,7.56]
[1758613487011,7.13443884,218.98,218.93,7.56]
[1758613487207,0.86,218.99,218.93,7.56]
[1758613487411,3.87631115,218.98,218.92,4.108]
[1758613487611,0.86,218.99,218.93,7.56]
[1758613487919,3.87630779,218.98,218.92,4.108]
[1758613488113,0.86,218.99,218.93,7.56]
[1758613488319,7.1340882,218.98,218.93,7.56]
[1758613488511,4.9667,219.0,218.93,7.56]
[1758613488713,7.13379057,218.99,218.93,7.56]
[1758613489017,7.13379057,218.98,218.92,4.108]
[1758613489217,4.9667,219.0,218.93,7.56]
[1758613489418,7.13427868,218.99,218.94,4.1077]
[1758613489713,7.13427492,218.98,218.94,6.01585884]
[1758613490014,0.86,219.0,218.94,13.57585884]
[1758613490223,3.25781144,218.99,218.96,7.56]